lending/lending_fUSD_20250122
["ID","MTS","AMOUNT","RATE_DAILY","PERIOD"]
[349960199,1737537045906,-500.0,0.00019718,2]
[349960200,1737537045915,-1469.85,0.00019718,2]
[349960201,1737537045925,-764.23,0.00019718,2]
[349960202,1737537045934,-747.47,0.00019718,2]
[349960203,1737537045943,-1054.83,0.00019718,2]
[349960204,1737537045953,-2455.19,0.00019718,2]
[349960205,1737537045963,-510.87666195,0.00019718,2]
[349960206,1737537045972,-785.11,0.00019718,2]
[349960207,1737537045982,-595.15,0.00019718,2]
[349960208,1737537045992,-1574.01,0.00019718,2]
[349960209,1737537046002,-500.0,0.00019718,2]
[349960210,1737537046011,-878.07,0.00019718,2]
[349960211,1737537046020,-937.53,0.00019718,2]
[349960212,1737537046030,-500.0,0.00019718,2]
[349960213,1737537046039,-500.0,0.00019718,2]
[349960214,1737537046049,-1331.0,0.00019718,2]
[349960215,1737537046059,-721.3,0.00019718,2]
[349960216,1737537046070,-3246.16,0.00019718,2]
[349960217,1737537046080,-500.0,0.00019718,2]
[349960218,1737537046090,-2022.61,0.00019718,2]
[349960219,1737537046101,-500.0,0.00019718,2]
[349960220,1737537046111,-500.0,0.00019718,2]
[349960221,1737537046122,-799.05,0.00019718,2]
[349960222,1737537046131,-1112.05,0.00019718,2]
[349960224,1737537046141,-500.0,0.00019718,2]
[349960225,1737537046152,-500.0,0.00019718,2]
[349960226,1737537046163,-2569.25,0.00019718,2]
[349960228,1737537046173,-500.0,0.00019718,2]
[349960229,1737537046182,-584.98,0.00019718,2]
[349960230,1737537046192,-500.0,0.00019718,2]
[349960231,1737537046201,-500.0,0.00019718,2]
[349960232,1737537046211,-500.0,0.00019718,2]
[349960233,1737537046220,-938.01,0.00019718,2]
[349960234,1737537046230,-1002.54,0.00019718,2]
[349960235,1737537046239,-2035.66,0.00019718,2]
[349960236,1737537046248,-500.0,0.00019718,2]
[349960237,1737537046258,-500.0,0.00019718,2]
[349960238,1737537046268,-2565.64,0.00019718,2]
[349960239,1737537046278,-690.18,0.00019718,2]
[349960240,1737537046287,-1473.27,0.00019718,2]
[349960241,1737537046297,-500.0,0.00019718,2]
[349960242,1737537046308,-515.39,0.00019718,2]
[349960243,1737537046320,-403.04081402,0.00019718,2]
[349960244,1737537046330,-500.0,0.00019718,2]
[349960245,1737537046339,-795.11,0.00019718,2]
[349960246,1737537046350,-1079.12,0.00019718,2]
[349960247,1737537046362,-500.0,0.00019718,2]
[349960248,1737537046371,-386.14541892,0.00019718,2]
[349960249,1737537046381,-500.0,0.00019718,2]
[349960250,1737537046391,-500.0,0.00019718,2]
[349960251,1737537046400,-3298.56,0.00019718,2]
[349960252,1737537046410,-748.21,0.00019718,2]
[349960253,1737537046419,-500.0,0.00019718,2]
[349960254,1737537046429,-500.0,0.00019718,2]
[349960255,1737537046438,-510.94441253,0.00019718,2]
[349960256,1737537046447,-538.44,0.00019718,2]
[349960257,1737537046456,-2133.15,0.00019718,2]
[349960258,1737537046466,-500.0,0.00019718,2]
[349960259,1737537046475,-500.0,0.00019718,2]
[349960260,1737537046485,-500.0,0.00019718,2]
[349960261,1737537046495,-500.0,0.00019718,2]
[349960262,1737537046504,-500.0,0.00019718,2]
[349960263,1737537046513,-500.0,0.00019718,2]
[349960264,1737537046523,-500.0,0.00019718,2]
[349960265,1737537046532,-500.0,0.00019718,2]
[349960266,1737537046541,-806.14,0.00019718,2]
[349960267,1737537046551,-565.99,0.00019718,2]
[349960268,1737537046560,-500.0,0.00019718,2]
[349960269,1737537046569,-500.0,0.00019718,2]
[349960270,1737537046579,-500.0,0.00019718,2]
[349960271,1737537046588,-500.0,0.00019718,2]
[349960272,1737537046597,-1317.35,0.00019718,2]
[349960273,1737537046606,-500.0,0.00019718,2]
[349960274,1737537046615,-500.0,0.00019718,2]
[349960275,1737537046626,-601.99,0.00019718,2]
[349960276,1737537046635,-1886.38,0.00019718,2]
[349960277,1737537046644,-820.32,0.00019718,2]
[349960278,1737537046653,-500.0,0.00019718,2]
[349960279,1737537046662,-756.3,0.00019718,2]
[349960280,1737537046672,-2211.97,0.00019718,2]
[349960281,1737537046681,-501.52,0.00019718,2]
[349960282,1737537046691,-1294.09,0.00019718,2]
[349960283,1737537046700,-500.0,0.00019719,2]
[349960284,1737537046710,-500.0,0.00019719,2]
[349960285,1737537046719,-526.43,0.00019719,2]
[349960286,1737537046729,-500.0,0.00019719,2]
[349960287,1737537046738,-500.0,0.00019719,2]
[349960288,1737537046748,-500.0,0.00019719,2]
[349960289,1737537046757,-504.74722128,0.00019719,2]
[349960290,1737537046766,-516.43,0.00019719,2]
[349960291,1737537046776,-514.73,0.00019719,2]
[349960292,1737537046785,-500.0,0.00019719,2]
[349960293,1737537046795,-500.0,0.00019719,2]
[349960294,1737537046806,-500.0,0.00019719,2]
[349960295,1737537046815,-500.0,0.00019719,2]
[349960296,1737537046824,-500.0,0.00019719,2]
[349960297,1737537046833,-500.0,0.00019719,2]
[349960298,1737537046843,-500.0,0.00019719,2]
[349960299,1737537046854,-500.0,0.00019719,2]
[349960300,1737537046863,-542.96616277,0.00019719,2]
[349960301,1737537046872,-500.0,0.00019719,2]
[349960302,1737537046882,-500.0,0.00019719,2]
[349960303,1737537046891,-500.0,0.00019719,2]
[349960304,1737537046902,-500.0,0.00019719,2]
[349960305,1737537046911,-500.0,0.00019719,2]
[349960306,1737537046921,-500.0,0.00019719,2]
[349960307,1737537046931,-500.0,0.00019719,2]
[349960308,1737537046941,-500.0,0.00019719,2]
[349960309,1737537046951,-500.0,0.00019719,2]
[349960310,1737537046960,-697.35,0.00019719,2]
[349960311,1737537046969,-500.0,0.00019719,2]
[349960312,1737537046979,-500.0,0.00019719,2]
[349960313,1737537046988,-500.0,0.00019719,2]
[349960314,1737537046998,-961.2,0.00019719,2]
[349960315,1737537047007,-539.92,0.00019719,2]
[349960316,1737537047016,-500.0,0.00019719,2]
[349960317,1737537047025,-500.0,0.00019719,2]
[349960318,1737537047036,-611.78,0.00019719,2]
[349960319,1737537047044,-500.0,0.00019719,2]
[349960320,1737537047054,-500.0,0.00019719,2]
[349960321,1737537047063,-732.7,0.00019719,2]
[349960322,1737537047072,-500.0,0.00019719,2]
[349960323,1737537047081,-500.0,0.00019719,2]
[349960324,1737537047091,-500.0,0.00019719,2]
[349960325,1737537047100,-500.0,0.00019719,2]
[349960326,1737537047109,-500.0,0.00019719,2]
[349960327,1737537047118,-655.09,0.00019719,2]
[349960328,1737537047127,-500.0,0.00019719,2]
[349960329,1737537047136,-500.0,0.00019719,2]
[349960330,1737537047145,-500.0,0.00019719,2]
[349960331,1737537047154,-688.98,0.00019719,2]
[349960332,1737537047163,-500.0,0.00019719,2]
[349960333,1737537047176,-500.0,0.00019719,2]
[349960334,1737537047185,-500.0,0.00019719,2]
[349960335,1737537047194,-500.0,0.00019719,2]
[349960336,1737537047204,-500.0,0.00019719,2]
[349960337,1737537047213,-500.0,0.00019719,2]
[349960338,1737537047222,-500.0,0.00019719,2]
[349960339,1737537047230,-500.0,0.00019719,2]
[349960340,1737537047239,-884.19,0.00019719,2]
[349960341,1737537047248,-500.0,0.00019719,2]
[349960342,1737537047257,-500.0,0.00019719,2]
[349960343,1737537047266,-500.0,0.00019719,2]
[349960344,1737537047276,-500.0,0.00019719,2]
[349960345,1737537047286,-663.18,0.00019719,2]
[349960346,1737537047295,-543.67,0.00019719,2]
[349960347,1737537047306,-790.69,0.00019719,2]
[349960348,1737537047317,-500.0,0.00019719,2]
[349960349,1737537047327,-923.8,0.00019719,2]
[349960350,1737537047336,-805.55,0.00019719,2]
[349960351,1737537047345,-500.0,0.00019719,2]
[349960352,1737537047356,-326.52925612,0.00019719,2]
[349960353,1737537047365,-500.0,0.00019719,2]
[349960354,1737537047374,-500.0,0.00019719,2]
[349960355,1737537047383,-500.0,0.00019719,2]
[349960356,1737537047393,-500.0,0.00019719,2]
[349960357,1737537047403,-500.0,0.00019719,2]
[349960358,1737537047412,-500.0,0.00019719,2]
[349960359,1737537047421,-500.0,0.00019719,2]
[349960360,1737537047430,-500.0,0.00019719,2]
[349960361,1737537047439,-533.74488714,0.00019719,2]
[349960362,1737537047449,-500.0,0.00019719,2]
[349960363,1737537047458,-500.0,0.00019719,2]
[349960364,1737537047468,-500.0,0.00019719,2]
[349960365,1737537047479,-988.24,0.00019719,2]
[349960366,1737537047489,-787.99,0.00019719,2]
[349960367,1737537047498,-1035.87,0.00019719,2]
[349960368,1737537047507,-903.32,0.00019719,2]
[349960369,1737537047518,-500.0,0.00019719,2]
[349960370,1737537047528,-500.0,0.00019719,2]
[349960371,1737537047538,-500.0,0.00019719,2]
[349960372,1737537047547,-485.09677001,0.00019719,2]
[349960373,1737537047556,-500.0,0.00019719,2]
[349960374,1737537047565,-500.0,0.00019719,2]
[349960375,1737537047574,-500.0,0.00019719,2]
[349960376,1737537047584,-704.71,0.00019719,2]
[349960377,1737537047593,-500.0,0.00019719,2]
[349960378,1737537047603,-500.0,0.00019719,2]
[349960379,1737537047612,-500.0,0.00019719,2]
[349960380,1737537047622,-500.0,0.00019719,2]
[349960381,1737537047631,-922.82,0.00019719,2]
[349960382,1737537047641,-728.75,0.00019719,2]
[349960383,1737537047650,-500.0,0.00019719,2]
[349960384,1737537047659,-599.17,0.00019719,2]
[349960385,1737537047668,-574.21,0.00019719,2]
[349960386,1737537047677,-500.0,0.00019719,2]
[349960387,1737537047687,-907.58,0.00019719,2]
[349960388,1737537047696,-715.97,0.00019719,2]
[349960389,1737537047705,-500.0,0.00019719,2]
[349960390,1737537047715,-2349.73,0.00019719,2]
[349960391,1737537047724,-500.0,0.00019719,2]
[349960392,1737537047737,-1050.17,0.00019719,2]
[349960393,1737537047748,-971.52,0.00019719,2]
[349960394,1737537047758,-500.0,0.00019719,2]
[349960395,1737537047768,-1400.74,0.00019719,2]
[349960396,1737537047779,-648.6,0.00019719,2]
[349960397,1737537047788,-1565.65,0.00019719,2]
[349960398,1737537047799,-500.0,0.00019719,2]
[349960399,1737537047808,-584.64,0.00019719,2]
[349960400,1737537047818,-500.0,0.00019719,2]
[349960401,1737537047827,-1000.0,0.00019719,2]
[349960402,1737537047836,-761.81,0.00019719,2]
[349960403,1737537047847,-500.0,0.00019719,2]
[349960404,1737537047857,-500.0,0.00019719,2]
[349960405,1737537047867,-2223.57,0.00019719,2]
[349960406,1737537047877,-500.0,0.00019719,2]
[349960407,1737537047887,-1183.64,0.00019719,2]
[349960408,1737537047898,-833.94,0.00019719,2]
[349960409,1737537047908,-1009.95,0.00019719,2]
[349960410,1737537047919,-500.0,0.00019719,2]
[349960411,1737537047929,-500.0,0.00019719,2]
[349960412,1737537047939,-500.0,0.00019719,2]
[349960413,1737537047948,-500.0,0.00019719,2]
[349960414,1737537047957,-828.3,0.00019719,2]
[349960415,1737537047967,-500.0,0.00019719,2]
[349960416,1737537047976,-500.0,0.00019772,2]
[349960417,1737537048124,-1427.79409836,0.00019893,2]
[349960418,1737537048136,-205.17891865,0.000199,2]
[349960419,1737537048147,-262.6178173,0.00019912,2]
[349960420,1737537048158,-151.18348054,0.00019981,2]
[349960421,1737537048167,-11105.98872259,0.00019981,2]
[349960422,1737537048177,-1031.4948883,0.00019991,5]
[349960423,1737537048187,-1875.62,0.00019991,2]
[349960424,1737537048197,-639.66,0.00019991,2]
[349960425,1737537048207,-922.03,0.00019991,2]
[349960426,1737537048219,-500.0,0.00019991,2]
[349960427,1737537048228,-500.0,0.00019991,2]
[349960428,1737537048238,-1022.45,0.00019991,2]
[349960429,1737537048247,-811.48,0.00019991,2]
[349960430,1737537048260,-698.87,0.00019991,2]
[349960431,1737537048270,-732.44,0.00019991,2]
[349960432,1737537048280,-1559.39,0.00019991,2]
[349960433,1737537048289,-500.0,0.00019991,2]
[349960434,1737537048299,-851.4,0.00019991,2]
[349960435,1737537048309,-1455.31,0.00019991,2]
[349960436,1737537048321,-1277.88,0.00019991,2]
[349960437,1737537048331,-646.15,0.00019991,2]
[349960438,1737537048340,-679.37,0.00019991,2]
[349960439,1737537048349,-1134.65,0.00019991,2]
[349960440,1737537048361,-2090.77,0.00019991,2]
[349960441,1737537048370,-807.91,0.00019991,2]
[349960442,1737537048379,-552.24,0.00019991,2]
[349960443,1737537048389,-500.0,0.00019991,2]
[349960444,1737537048399,-802.88,0.00019991,2]
[349960445,1737537048409,-1664.12,0.00019991,2]
[349960446,1737537048419,-500.0,0.00019991,2]
[349960447,1737537048429,-500.0,0.00019991,2]
[349960448,1737537048440,-999.47,0.00019991,2]
[349960449,1737537048450,-500.0,0.00019992,2]
[349960450,1737537048459,-500.0,0.00019992,2]
[349960451,1737537048470,-500.0,0.00019992,2]
[349960452,1737537048481,-638.71,0.00019992,2]
[349960453,1737537048490,-500.0,0.00019992,2]
[349960454,1737537048500,-837.88,0.00019992,2]
[349960455,1737537048510,-500.0,0.00019992,2]
[349960456,1737537048520,-500.0,0.00019992,2]
[349960457,1737537048531,-500.0,0.00019992,2]
[349960458,1737537048541,-500.0,0.00019992,2]
[349960459,1737537048550,-500.0,0.00019992,2]
[349960460,1737537048560,-500.0,0.00019992,2]
[349960461,1737537048571,-500.0,0.00019992,2]
[349960462,1737537048580,-500.0,0.00019992,2]
[349960463,1737537048589,-500.0,0.00019992,2]
[349960464,1737537048599,-500.0,0.00019992,2]
[349960465,1737537048609,-500.0,0.00019992,2]
[349960466,1737537048618,-590.89,0.00019992,2]
[349960467,1737537048629,-500.0,0.00019992,2]
[349960468,1737537048639,-649.92,0.00019992,2]
[349960469,1737537048649,-500.0,0.00019992,2]
[349960470,1737537048659,-500.0,0.00019992,2]
[349960471,1737537048668,-500.0,0.00019992,2]
[349960472,1737537048677,-513.46460012,0.00019992,2]
[349960473,1737537048687,-500.0,0.00019992,2]
[349960474,1737537048696,-786.99,0.00019992,2]
[349960475,1737537048706,-500.0,0.00019992,2]
[349960476,1737537048716,-959.596107,0.00019992,2]
[349960477,1737537048727,-206.23982834,0.00019992,2]
[349960478,1737537048737,-500.0,0.00019992,2]
[349960479,1737537048746,-500.0,0.00019992,2]
[349960480,1737537048757,-500.0,0.00019992,2]
[349960481,1737537048767,-500.0,0.00019992,2]
[349960482,1737537048777,-500.0,0.00019992,2]
[349960483,1737537048787,-500.0,0.00019992,2]
[349960484,1737537048797,-905.3,0.00019992,2]
[349960485,1737537048806,-500.0,0.00019992,2]
[349960486,1737537048816,-500.0,0.00019992,2]
[349960487,1737537048825,-500.0,0.00019992,2]
[349960488,1737537048835,-500.0,0.00019992,2]
[349960489,1737537048845,-300.13978384,0.00019992,2]
[349960490,1737537048856,-602.22,0.00019992,2]
[349960491,1737537048866,-500.0,0.00019992,2]
[349960492,1737537048875,-1063.2,0.00019992,2]
[349960493,1737537048885,-981.49,0.00019992,2]
[349960494,1737537048894,-500.0,0.00019992,2]
[349960495,1737537048905,-500.0,0.00019992,2]
[349960496,1737537048914,-500.0,0.00019992,2]
[349960497,1737537048924,-684.04,0.00019992,2]
[349960498,1737537048933,-500.0,0.00019992,2]
[349960499,1737537048943,-500.0,0.00019992,2]
[349960500,1737537048953,-500.0,0.00019992,2]
[349960501,1737537048963,-500.0,0.00019992,2]
[349960502,1737537048972,-500.0,0.00019992,2]
[349960503,1737537048982,-500.0,0.00019992,2]
[349960504,1737537048991,-500.0,0.00019992,2]
[349960505,1737537049002,-500.0,0.00019992,2]
[349960506,1737537049012,-1036.61,0.00019992,2]
[349960507,1737537049022,-687.36,0.00019992,2]
[349960508,1737537049032,-500.0,0.00019992,2]
[349960509,1737537049041,-500.0,0.00019992,2]
[349960510,1737537049051,-500.0,0.00019992,2]
[349960511,1737537049060,-721.36,0.00019992,2]
[349960512,1737537049069,-500.0,0.00019992,2]
[349960513,1737537049081,-794.87,0.00019992,2]
[349960514,1737537049090,-604.68,0.00019992,2]
[349960515,1737537049100,-500.0,0.00019992,2]
[349960516,1737537049110,-500.0,0.00019992,2]
[349960517,1737537049120,-635.51,0.00019992,2]
[349960518,1737537049130,-500.0,0.00019992,2]
[349960519,1737537049139,-500.0,0.00019992,2]
[349960520,1737537049148,-711.98,0.00019992,2]
[349960521,1737537049158,-500.0,0.00019992,2]
[349960522,1737537049168,-500.0,0.00019992,2]
[349960523,1737537049177,-1786.14,0.00019992,2]
[349960524,1737537049186,-500.0,0.00019992,2]
[349960525,1737537049196,-921.11,0.00019992,2]
[349960526,1737537049206,-500.0,0.00019992,2]
[349960527,1737537049217,-1710.78,0.00019992,2]
[349960528,1737537049227,-1271.98,0.00019992,2]
[349960529,1737537049237,-1008.05,0.00019992,2]
[349960530,1737537049247,-500.0,0.00019992,2]
[349960531,1737537049257,-500.0,0.00019992,2]
[349960532,1737537049267,-658.5,0.00019992,2]
[349960533,1737537049277,-500.0,0.00019992,2]
[349960534,1737537049287,-594.1,0.00019992,2]
[349960535,1737537049297,-500.0,0.00019992,2]
[349960536,1737537049306,-500.0,0.00019992,2]
[349960537,1737537049320,-561.17,0.00019992,2]
[349960538,1737537049330,-500.0,0.00019992,2]
[349960539,1737537049341,-500.0,0.00019992,2]
[349960540,1737537049351,-3576.71,0.00019992,2]
[349960541,1737537049365,-1457.13,0.00019992,2]
[349960542,1737537049378,-657.76,0.00019992,2]
[349960543,1737537049388,-783.71,0.00019992,2]
[349960544,1737537049400,-1740.71,0.00019992,2]
[349960545,1737537049411,-1469.85,0.00019992,2]
[349960546,1737537049421,-764.23,0.00019992,2]
[349960547,1737537049432,-747.47,0.00019992,2]
[349960548,1737537049443,-1054.83,0.00019992,2]
[349960549,1737537049453,-2455.19,0.00019992,2]
[349960550,1737537049463,-785.11,0.00019992,2]
[349960551,1737537049472,-595.15,0.00019992,2]
[349960552,1737537049482,-1574.01,0.00019992,2]
[349960553,1737537049492,-500.0,0.00019992,2]
[349960554,1737537049502,-878.07,0.00019992,2]
[349960555,1737537049512,-937.53,0.00019992,2]
[349960556,1737537049521,-500.0,0.00019992,2]
[349960557,1737537049531,-500.0,0.00019992,2]
[349960558,1737537049541,-1331.0,0.00019992,2]
[349960559,1737537049550,-721.3,0.00019992,2]
[349960560,1737537049560,-3246.16,0.00019992,2]
[349960561,1737537049569,-500.0,0.00019992,2]
[349960562,1737537049578,-2022.61,0.00019992,2]
[349960563,1737537049588,-500.0,0.00019992,2]
[349960564,1737537049597,-799.05,0.00019992,2]
[349960565,1737537049605,-1112.05,0.00019992,2]
[349960566,1737537049614,-500.0,0.00019992,2]
[349960567,1737537049624,-500.0,0.00019992,2]
[349960568,1737537049634,-2569.25,0.00019992,2]
[349960569,1737537049643,-500.0,0.00019992,2]
[349960570,1737537049652,-584.98,0.00019992,2]
[349960571,1737537049663,-515.24519522,0.00019992,2]
[349960572,1737537049672,-500.0,0.00019992,2]
[349960573,1737537049680,-938.01,0.00019992,2]
[349960574,1737537049690,-1002.54,0.00019992,2]
[349960575,1737537049699,-2035.66,0.00019992,2]
[349960576,1737537049707,-500.0,0.00019992,2]
[349960577,1737537049718,-500.0,0.00019992,2]
[349960578,1737537049727,-2565.64,0.00019992,2]
[349960579,1737537049737,-690.18,0.00019992,2]
[349960580,1737537049746,-1473.27,0.00019992,2]
[349960581,1737537049756,-500.0,0.00019992,2]
[349960582,1737537049766,-515.39,0.00019992,2]
[349960583,1737537049777,-500.0,0.00019992,2]
[349960584,1737537049787,-795.11,0.00019992,2]
[349960585,1737537049797,-1079.12,0.00019992,2]
[349960586,1737537049806,-500.0,0.00019992,2]
[349960587,1737537049815,-500.0,0.00019992,2]
[349960588,1737537049825,-500.0,0.00019992,2]
[349960589,1737537049834,-3298.56,0.00019992,2]
[349960590,1737537049844,-748.21,0.00019992,2]
[349960591,1737537049854,-500.0,0.00019992,2]
[349960592,1737537049863,-500.0,0.00019992,2]
[349960593,1737537049873,-538.44,0.00019992,2]
[349960594,1737537049882,-2133.15,0.00019992,2]
[349960595,1737537049891,-500.0,0.00019992,2]
[349960596,1737537049901,-500.0,0.00019992,2]
[349960597,1737537049910,-500.0,0.00019992,2]
[349960598,1737537049920,-500.0,0.00019992,2]
[349960599,1737537049931,-500.0,0.00019992,2]
[349960600,1737537049941,-500.0,0.00019992,2]
[349960601,1737537049950,-500.0,0.00019992,2]
[349960602,1737537049960,-806.14,0.00019992,2]
[349960603,1737537049970,-565.99,0.00019992,2]
[349960604,1737537049979,-500.0,0.00019992,2]
[349960605,1737537049988,-500.0,0.00019992,2]
[349960606,1737537049998,-500.0,0.00019992,2]
[349960607,1737537050008,-500.0,0.00019992,2]
[349960608,1737537050018,-1317.35,0.00019992,2]
[349960609,1737537050027,-500.0,0.00019992,2]
[349960610,1737537050037,-601.99,0.00019992,2]
[349960611,1737537050047,-1886.38,0.00019992,2]
[349960612,1737537050056,-820.32,0.00019992,2]
[349960613,1737537050066,-500.0,0.00019992,2]
[349960614,1737537050075,-756.3,0.00019992,2]
[349960615,1737537050084,-2211.97,0.00019992,2]
[349960616,1737537050093,-526.43,0.00019993,2]
[349960617,1737537050102,-500.0,0.00019993,2]
[349960618,1737537050112,-500.0,0.00019993,2]
[349960619,1737537050121,-500.0,0.00019993,2]
[349960620,1737537050130,-516.43,0.00019993,2]
[349960621,1737537050139,-514.73,0.00019993,2]
[349960622,1737537050149,-500.0,0.00019993,2]
[349960623,1737537050158,-500.0,0.00019993,2]
[349960624,1737537050167,-500.0,0.00019993,2]
[349960625,1737537050177,-500.0,0.00019993,2]
[349960626,1737537050186,-500.0,0.00019993,2]
[349960627,1737537050195,-500.0,0.00019993,2]
[349960628,1737537050205,-500.0,0.00019993,2]
[349960629,1737537050214,-500.0,0.00019993,2]
[349960630,1737537050223,-500.0,0.00019993,2]
[349960631,1737537050232,-500.0,0.00019993,2]
[349960632,1737537050242,-500.0,0.00019993,2]
[349960633,1737537050251,-697.35,0.00019993,2]
[349960634,1737537050260,-500.0,0.00019993,2]
[349960635,1737537050269,-160.25610185,0.00019993,2]
[349960636,1737537050279,-500.0,0.00019993,2]
[349960637,1737537050289,-961.2,0.00019993,2]
[349960638,1737537050298,-539.92,0.00019993,2]
[349960639,1737537050307,-500.0,0.00019993,2]
[349960640,1737537050320,-500.0,0.00019993,2]
[349960641,1737537050329,-611.78,0.00019993,2]
[349960642,1737537050340,-500.0,0.00019993,2]
[349960643,1737537050352,-732.7,0.00019993,2]
[349960644,1737537050362,-500.0,0.00019993,2]
[349960645,1737537050373,-500.0,0.00019993,2]
[349960646,1737537050382,-500.0,0.00019993,2]
[349960647,1737537050393,-649.78977732,0.00019993,2]
[349960648,1737537050404,-500.0,0.00019993,2]
[349960649,1737537050415,-655.09,0.00019993,2]
[349960650,1737537050426,-500.0,0.00019993,2]
[349960651,1737537050437,-500.0,0.00019993,2]
[349960652,1737537050448,-500.0,0.00019993,2]
[349960653,1737537050457,-688.98,0.00019993,2]
[349960654,1737537050467,-500.0,0.00019993,2]
[349960655,1737537050476,-500.0,0.00019993,2]
[349960656,1737537050486,-500.0,0.00019993,2]
[349960657,1737537050496,-500.0,0.00019993,2]
[349960658,1737537050506,-500.0,0.00019993,2]
[349960659,1737537050515,-500.0,0.00019993,2]
[349960660,1737537050527,-884.19,0.00019993,2]
[349960661,1737537050538,-500.0,0.00019993,2]
[349960662,1737537050548,-500.0,0.00019993,2]
[349960663,1737537050558,-663.18,0.00019993,2]
[349960664,1737537050569,-543.67,0.00019993,2]
[349960665,1737537050578,-790.69,0.00019993,2]
[349960666,1737537050590,-566.77,0.00019993,2]
[349960667,1737537050600,-923.8,0.00019993,2]
[349960668,1737537050609,-805.55,0.00019993,2]
[349960669,1737537050620,-500.0,0.00019993,2]
[349960670,1737537050629,-500.0,0.00019993,2]
[349960671,1737537050639,-500.0,0.00019993,2]
[349960672,1737537050649,-500.0,0.00019993,2]
[349960673,1737537050658,-500.0,0.00019993,2]
[349960674,1737537050668,-500.0,0.00019993,2]
[349960675,1737537050677,-500.0,0.00019993,2]
[349960676,1737537050687,-988.24,0.00019993,2]
[349960677,1737537050700,-787.99,0.00019993,2]
[349960678,1737537050711,-1035.87,0.00019993,2]
[349960679,1737537050721,-903.32,0.00019993,2]
[349960680,1737537050730,-351.67257513,0.00019993,2]
[349960681,1737537050740,-500.0,0.00019993,2]
[349960682,1737537050893,-500.0,0.00019993,2]
[349960683,1737537050918,-500.0,0.00019993,2]
[349960684,1737537050927,-500.0,0.00019993,2]
[349960685,1737537050937,-500.0,0.00019993,2]
[349960686,1737537050948,-704.71,0.00019993,2]
[349960687,1737537050958,-500.0,0.00019993,2]
[349960688,1737537050967,-500.0,0.00019993,2]
[349960689,1737537050976,-500.0,0.00019993,2]
[349960690,1737537050986,-500.0,0.00019993,2]
[349960691,1737537050997,-922.82,0.00019993,2]
[349960692,1737537051007,-728.75,0.00019993,2]
[349960693,1737537051017,-500.0,0.00019993,2]
[349960694,1737537051027,-599.17,0.00019993,2]
[349960695,1737537051038,-574.21,0.00019993,2]
[349960696,1737537051048,-500.0,0.00019993,2]
[349960697,1737537051058,-907.58,0.00019993,2]
[349960698,1737537051067,-715.97,0.00019993,2]
[349960699,1737537051076,-2349.73,0.00019993,2]
[349960700,1737537051086,-500.0,0.00019993,2]